bitfinex/quotes_SOLUSD_20240614
["timestamp","ask_amount","ask_price","bid_price","bid_amount"]
[1718354759946,115.2515,148.26,148.19,26.11]
[1718354760127,6.11,148.25,148.19,26.11]
[1718354761631,6.11,148.25,148.2,1.34939054]
[1718354762510,6.11,148.25,148.19,26.11]
[1718354762712,15.2515,148.26,148.19,26.11]
[1718354762927,6.11,148.24,148.19,26.11]
[1718354764031,15.2515,148.26,148.2,45.17]
[1718354764214,15.2515,148.26,148.24,6.11]
[1718354764731,15.2515,148.26,148.2,45.0]
[1718354765038,15.2515,148.26,148.21,26.11]
[1718354765914,15.2515,148.26,148.23,6.11]
[1718354766114,6.2174,148.28,148.24,26.11]
[1718354766315,6.2174,148.28,148.25,6.11]
[1718354766544,15.4623,148.3,148.26,6.11]
[1718354766718,15.4623,148.3,148.27,6.11]
[1718354767043,15.4623,148.3,148.25,6.11]
[1718354767512,15.4623,148.3,148.26,6.11]
[1718354767917,15.4623,148.3,148.24,20.0]
[1718354768115,15.4623,148.3,148.25,6.11]
[1718354769419,15.4623,148.3,148.23,20.0]
[1718354769420,21.5723,148.3,148.23,20.0]
[1718354769727,15.4623,148.3,148.23,20.0]
[1718354769929,6.11,148.29,148.23,26.11]
[1718354770616,15.4623,148.3,148.23,26.11]
[1718354770816,6.11,148.28,148.23,26.11]
[1718354771234,6.11,148.28,148.23,20.0]
[1718354771436,6.11,148.28,148.23,6.11]
[1718354771642,6.11,148.28,148.22,20.17]
[1718354771643,6.11,148.28,148.24,20.0]
[1718354771826,6.11,148.28,148.23,6.11]
[1718354772135,6.11,148.28,148.24,20.0]
[1718354772538,6.11,148.28,148.23,6.11]
[1718354773414,6.11,148.28,148.22,0.17]
[1718354773617,6.11,148.28,148.23,6.11]
[1718354774438,15.4623,148.3,148.23,6.11]
[1718354774640,15.4623,148.3,148.24,6.11]
[1718354775425,15.4623,148.3,148.25,6.11]
[1718354775637,15.4623,148.3,148.26,6.11]
[1718354775841,6.11,148.29,148.21,7.94891796]
[1718354776052,12.6797,148.28,148.23,6.11]
[1718354776618,6.5697,148.28,148.24,6.11]
[1718354777646,15.4623,148.3,148.27,6.11]
[1718354778521,15.4623,148.3,148.28,6.11]
[1718354778721,6.1591,148.33,148.29,6.11]
[1718354778925,6.1591,148.33,148.3,6.11]
[1718354781253,15.8726,148.35,148.31,6.11]
[1718354781429,6.4088,148.37,148.33,6.11]
[1718354781630,6.4088,148.37,148.29,20.26]
[1718354781631,6.4088,148.37,148.3,0.17]
[1718354781829,6.4088,148.37,148.3,65.68]
[1718354782532,6.4088,148.37,148.32,6.11]
[1718354783841,6.4088,148.37,148.3,65.51]
[1718354784032,6.4088,148.37,148.32,6.11]
[1718354785737,12.5188,148.37,148.3,65.51]
[1718354785964,12.5188,148.37,148.31,6.11]
[1718354787458,6.4088,148.37,148.32,6.11]
[1718354789829,6.4088,148.37,148.33,6.11]
[1718354790656,15.3735,148.39,148.33,20.26]
[1718354790961,15.3735,148.39,148.37,6.11]
[1718354791130,6.0672,148.41,148.37,6.11]
[1718354791331,6.0672,148.41,148.34,85.94]
[1718354791332,6.0672,148.41,148.38,6.11]
[1718354791641,6.0672,148.41,148.34,85.94]
[1718354792044,6.0672,148.41,148.39,6.11]
[1718354792367,16.4664,148.43,148.4,6.11]
[1718354793867,16.4664,148.43,148.37,0.17]
[1718354794066,16.4664,148.43,148.38,6.11]
[1718354794257,16.4664,148.43,148.39,20.0]
[1718354795460,16.4664,148.43,148.39,26.11]
[1718354796047,16.4664,148.43,148.39,20.0]
[1718354796247,16.4664,148.43,148.39,26.11]
[1718354796749,16.4664,148.43,148.41,6.11]
[1718354798077,6.1819,148.45,148.42,6.11]
[1718354798376,6.1819,148.45,148.39,20.0]
[1718354798377,6.1819,148.45,148.41,6.11]
[1718354800782,17.0543921,148.47,148.41,6.11]
[1718354800983,17.0543921,148.47,148.43,6.11]
[1718354801196,17.0543921,148.47,148.44,51.11]
[1718354801662,0.8456921,148.47,148.44,51.11]
[1718354803382,0.8456921,148.47,148.42,0.34]
[1718354803591,0.8456921,148.47,148.43,6.11]
[1718354803758,0.8456921,148.47,148.44,20.0]
[1718354805000,0.8456921,148.47,148.42,6.11]
[1718354805187,0.8456921,148.47,148.43,20.0]
[1718354805985,0.8456921,148.47,148.43,26.11]
[1718354807368,0.8456921,148.47,148.44,6.11]
[1718354809299,0.8456921,148.47,148.43,20.0]
[1718354809475,0.8456921,148.47,148.42,40.6]
[1718354809677,0.8456921,148.47,148.43,45.51]
[1718354809892,0.8456921,148.47,148.44,20.0]
[1718354811687,0.8456921,148.47,148.45,0.17]
[1718354811891,0.8456921,148.47,148.46,6.11]
[1718354812090,0.8456921,148.47,148.46,26.11]
[1718354813792,0.8456921,148.47,148.46,20.0]
[1718354814108,0.8456921,148.47,148.45,6.11]
[1718354814284,0.8456921,148.47,148.46,20.0]
[1718354816187,0.8456921,148.47,148.46,26.11]
[1718354816902,0.8456921,148.47,148.46,71.79]
[1718354817409,0.8456921,148.47,148.46,65.68]
[1718354817611,0.8456921,148.47,148.46,71.79]
[1718354820722,0.8456921,148.47,148.46,92.05]
[1718354820937,16.6171,148.55,148.47,0.17]
[1718354821211,16.6171,148.55,148.5,6.11]
[1718354821418,22.7271,148.55,148.5,6.11]
[1718354821600,16.6171,148.55,148.5,6.11]
[1718354822001,16.6171,148.55,148.47,27.05]
[1718354822002,16.6171,148.55,148.51,6.11]
[1718354822218,16.6171,148.55,148.5,6.11]
[1718354822419,6.2109,148.57,148.51,6.11]
[1718354822590,6.2109,148.57,148.52,6.11]
[1718354823007,6.2109,148.57,148.53,6.11]
[1718354823220,6.2109,148.57,148.52,6.11]
[1718354823515,6.2109,148.57,148.53,6.11]
[1718354824723,6.2109,148.57,148.52,6.11]
[1718354825417,12.3209,148.57,148.52,6.11]
[1718354826113,12.3209,148.57,148.51,6.11]
[1718354826318,0.8456921,148.62,148.56,6.11]
[1718354826524,0.8456921,148.62,148.52,103.8496]
[1718354826525,6.9556921,148.62,148.57,6.11]
[1718354827206,100.8456921,148.62,148.54,6.11]
[1718354827414,100.8456921,148.62,148.53,6.11]
[1718354827415,6.11,148.59,148.53,6.11]
[1718354827618,6.11,148.58,148.53,6.11]
[1718354828021,6.3503,148.58,148.48,15.4213]
[1718354828216,6.11,148.56,148.51,6.11]
[1718354828729,6.11,148.57,148.52,6.11]
[1718354829431,6.11,148.57,148.49,0.17]
[1718354829623,6.11,148.57,148.52,6.11]
[1718354829824,6.11,148.57,148.49,65.94]
[1718354830122,6.11,148.57,148.52,6.11]
[1718354830325,6.11,148.57,148.51,6.11]
[1718354830652,6.11,148.61,148.51,6.11]
[1718354830653,21.2966,148.68,148.57,0.17]
[1718354830933,6.11,148.67,148.61,6.11]
[1718354831114,6.11,148.66,148.61,6.11]
[1718354831338,15.1866,148.68,148.61,6.11]
[1718354831652,6.11,148.66,148.61,6.11]
[1718354831807,6.11,148.66,148.59,0.17]
[1718354832132,15.1866,148.68,148.61,6.11]
[1718354832321,6.11,148.67,148.61,6.11]
[1718354832630,15.1866,148.68,148.61,26.62]
[1718354832832,6.11,148.67,148.61,71.79]
[1718354833008,15.1866,148.68,148.61,71.79]
[1718354833323,6.11,148.67,148.61,65.0]
[1718354833533,6.11,148.67,148.61,71.11]
[1718354833856,21.2966,148.68,148.61,71.45]
[1718354834129,15.1866,148.68,148.62,0.17]
[1718354834333,15.1866,148.68,148.64,6.11]
[1718354834711,15.1866,148.68,148.63,6.11]
[1718354834909,15.1866,148.68,148.64,20.0]
[1718354835313,6.3503,148.69,148.64,20.0]
[1718354835636,6.3503,148.69,148.62,20.17]
[1718354835949,12.4603,148.69,148.63,51.11]
[1718354836254,12.4603,148.69,148.64,6.11]
[1718354836610,100.0,148.72,148.64,20.26]
[1718354836864,22.6737,148.75,148.67,6.11]
[1718354837148,22.6737,148.75,148.69,6.11]
[1718354837149,28.7837,148.75,148.69,6.11]
[1718354837737,6.11,148.74,148.69,6.11]
[1718354837952,6.11,148.72,148.66,6.11]
[1718354838245,6.11,148.72,148.67,20.0]
[1718354838414,6.11,148.72,148.67,26.11]
[1718354838861,22.6737,148.75,148.67,20.0]
[1718354839040,100.0,148.74,148.65,20.34]
[1718354839241,100.0,148.74,148.66,45.0]
[1718354839428,100.0,148.74,148.64,9.71626894]
[1718354839746,100.0,148.72,148.59,9.71626894]
[1718354840124,100.0,148.7,148.59,29.97626894]
[1718354840339,0.33333334,148.71,148.6,41.73651347]
[1718354840568,0.33333334,148.69,148.6,41.73651347]
[1718354840847,0.33333334,148.69,148.6,39.24671347]
[1718354841423,0.33333334,148.69,148.61,65.0]
[1718354844825,0.33333334,148.69,148.62,0.17]
[1718354846386,0.33333334,148.69,148.61,65.0]
[1718354848131,100.33333334,148.69,148.61,20.0]
[1718354848341,100.33333334,148.69,148.58,31.7909]
[1718354848342,16.4239,148.68,148.58,31.7909]
[1718354848947,100.0,148.66,148.58,31.7909]
[1718354849250,100.0,148.66,148.56,9.71626894]
[1718354849547,0.33333334,148.65,148.56,9.71626894]
[1718354849929,100.0,148.64,148.56,9.71626894]
[1718354850457,0.33333334,148.63,148.56,9.71626894]
[1718354852279,0.33333334,148.63,148.54,15.0993]
[1718354852570,0.33333334,148.63,148.55,20.0]
[1718354852771,6.2583,148.62,148.55,20.0]
[1718354852949,16.2462,148.61,148.53,20.0]
[1718354853134,16.57953334,148.61,148.53,20.0]
[1718354853734,100.17,148.6,148.47,14.58075402]
[1718354853959,100.0,148.56,148.47,9.27044453]
[1718354854132,100.0,148.56,148.45,16.6627]
[1718354854334,0.33333334,148.55,148.45,36.9227]
[1718354854534,0.33333334,148.55,148.48,20.26]
[1718354855140,0.33333334,148.55,148.48,22.7518]
[1718354855358,0.33333334,148.55,148.46,9.27044453]
[1718354855555,0.33333334,148.55,148.47,0.17]
[1718354855872,0.33333334,148.55,148.46,9.27044453]
[1718354856861,0.33333334,148.55,148.47,20.0]
[1718354857162,0.33333334,148.55,148.47,20.17]
[1718354857364,0.33333334,148.55,148.48,45.17]
[1718354857561,0.33333334,148.55,148.49,20.0]
[1718354857736,0.33333334,148.55,148.5,45.34]
[1718354859363,0.33333334,148.55,148.49,20.0]
[1718354859568,0.33333334,148.55,148.47,20.0]
[1718354859741,0.33333334,148.55,148.48,45.34]
[1718354859936,6.91063334,148.55,148.46,20.6]
[1718354860250,6.91063334,148.55,148.47,45.34]
[1718354861247,6.91063334,148.55,148.48,20.0]
[1718354861763,6.91063334,148.55,148.49,45.0]
[1718354861960,6.91063334,148.55,148.5,20.0]
[1718354880290,0.33333334,148.55,148.5,20.0]
[1718354880594,0.33333334,148.55,148.51,68.4313]
[1718354880767,0.33333334,148.55,148.52,22.4911]
[1718354881091,0.33333334,148.55,148.53,45.34]
[1718354881268,0.33333334,148.55,148.54,20.0]
[1718354884591,0.33333334,148.55,148.54,43.2609]
[1718354884761,1e-08,148.55,148.54,100.8854]
[1718354884967,6.4457,148.63,148.57,0.17]
[1718354885167,6.4457,148.63,148.57,45.68]
[1718354885674,6.4457,148.63,148.58,20.0]
[1718354885877,6.4457,148.63,148.59,45.0]
[1718354886787,16.0668,148.64,148.59,45.0]
[1718354886992,16.0668,148.64,148.6,20.0]
[1718354887684,16.0668,148.64,148.57,0.34]
[1718354887870,16.0668,148.64,148.57,45.34]
[1718354888058,16.0668,148.64,148.58,20.0]
[1718354890693,16.0668,148.64,148.53,20.26]
[1718354890996,16.0668,148.64,148.48,9.9671]
[1718354890997,100.0,148.62,148.5,2.4915]
[1718354891368,100.0,148.62,148.49,7.87409079]
[1718354891560,15.4014,148.61,148.49,7.87409079]
[1718354891762,15.4014,148.61,148.49,28.13409079]
[1718354891963,15.4014,148.61,148.51,2.4913]
[1718354892805,15.4014,148.61,148.53,0.17]
[1718354892981,15.4014,148.61,148.54,2.4908]
[1718354893301,15.4014,148.61,148.55,2.6607]
[1718354893474,6.4013,148.63,148.56,2.8305]
[1718354893797,6.4013,148.63,148.56,65.51]
[1718354894173,6.4013,148.63,148.58,0.17]
[1718354894390,6.4013,148.63,148.58,65.68]
[1718354895983,15.1336,148.65,148.58,65.51]
[1718354896182,15.1336,148.65,148.58,65.0]
[1718354896494,15.1336,148.65,148.58,20.0]
[1718354896699,15.1336,148.65,148.55,20.17]
[1718354896997,15.1336,148.65,148.56,45.51]
[1718354897183,15.1336,148.65,148.57,20.0]
[1718354898083,15.1336,148.65,148.58,45.17]
[1718354898285,15.1336,148.65,148.59,20.0]
[1718354901190,15.1336,148.65,148.56,20.0]
[1718354901371,0.17,148.64,148.53,42.359975]
[1718354901575,0.17,148.64,148.52,11.76154453]
[1718354901576,6.387,148.63,148.52,11.76154453]
[1718354901777,6.387,148.63,148.53,2.491]
[1718354902401,6.387,148.63,148.52,32.02154453]
[1718354902577,6.387,148.63,148.53,2.661]
[1718354902987,6.387,148.63,148.53,0.17]
[1718354903189,0.17,148.62,148.52,9.27044453]
[1718354903501,16.2458,148.61,148.53,20.0]
[1718354904515,16.2458,148.61,148.54,45.0]
[1718354904685,16.2458,148.61,148.55,20.0]
[1718354905307,16.2458,148.61,148.53,20.0]
[1718354905597,16.2458,148.61,148.53,22.491]
[1718354905979,16.2458,148.61,148.53,20.0]
[1718354906399,16.2458,148.61,148.53,22.491]
[1718354906598,16.2458,148.61,148.54,45.17]
[1718354906783,16.2458,148.61,148.55,20.0]
[1718354909716,16.2458,148.61,148.55,22.4906]
[1718354909881,16.2458,148.61,148.56,45.34]
[1718354910087,16.2458,148.61,148.57,20.0]
[1718354911814,6.387,148.63,148.57,20.0]
[1718354912293,6.387,148.63,148.58,45.34]
[1718354912499,6.387,148.63,148.59,20.0]
[1718354913212,6.387,148.63,148.56,0.17]
[1718354913418,6.387,148.63,148.56,45.51]
[1718354913619,6.387,148.63,148.57,20.0]
[1718354914729,6.387,148.63,148.58,2.4901]
[1718354915017,6.387,148.63,148.58,47.4901]
[1718354915213,6.387,148.63,148.59,20.0]
[1718354915588,6.387,148.63,148.57,20.0]
[1718354915790,6.387,148.63,148.56,0.51]
[1718354916293,6.387,148.63,148.56,45.51]
[1718354916610,6.387,148.63,148.57,20.0]
[1718354917116,6.387,148.63,148.53,22.491]
[1718354917309,6.387,148.63,148.53,31.76144453]
[1718354917892,106.387,148.63,148.53,9.27044453]
[1718354918189,106.387,148.63,148.54,45.17]
[1718354918393,106.387,148.63,148.53,9.27044453]
[1718354918394,16.1158,148.62,148.53,9.27044453]
[1718354918801,15.9458,148.62,148.53,9.27044453]
[1718354920122,15.9458,148.62,148.54,20.0]
[1718354923622,15.9458,148.62,148.55,0.17]
[1718354923623,15.7758,148.62,148.55,0.17]
[1718354923817,15.7758,148.62,148.56,2.4905]
[1718354924018,15.7758,148.62,148.56,22.4905]
[1718354925231,15.7758,148.62,148.57,45.0]
[1718354925406,15.7758,148.62,148.58,20.0]
[1718354930828,15.7758,148.62,148.55,23.0007]
[1718354931007,15.7758,148.62,148.56,45.17]
[1718354931216,15.7758,148.62,148.57,20.0]
[1718354932838,15.7758,148.62,148.58,6.09]
[1718354933027,15.7758,148.62,148.59,20.0]
[1718354934630,15.7758,148.62,148.59,26.09]
[1718354936613,15.7758,148.62,148.59,20.0]
[1718354936812,15.7758,148.62,148.6,6.09]
[1718354937009,15.7758,148.62,148.57,22.4903]
[1718354937225,15.7758,148.62,148.6,6.09]
[1718354937435,6.387,148.63,148.6,6.09]
[1718354938044,6.387,148.63,148.61,6.09]
[1718354938216,15.7304,148.66,148.62,26.09]
[1718354938412,15.7304,148.66,148.58,0.17]
[1718354938652,6.09,148.64,148.58,6.09]
[1718354938817,6.09,148.64,148.59,20.0]
[1718354939959,15.7304,148.66,148.59,26.09]
[1718354940133,6.09,148.65,148.59,26.09]
[1718354940347,6.09,148.64,148.59,20.0]
[1718354940570,6.09,148.62,148.57,26.09]
[1718354941870,6.09,148.63,148.57,26.09]
[1718354944470,6.09,148.62,148.57,20.0]
[1718354944659,28.3795,148.61,148.57,20.0]
[1718354944968,28.3795,148.61,148.56,20.0]
[1718354946148,22.2895,148.61,148.56,20.0]
[1718354946355,28.3795,148.61,148.56,20.0]
[1718354949382,22.2895,148.61,148.56,20.0]
[1718354949557,6.09,148.6,148.55,20.0]
[1718354949756,6.09,148.59,148.54,26.09]
[1718354950270,6.09,148.6,148.54,26.09]
[1718354951379,100.0,148.6,148.53,9.27044453]
[1718354951558,6.09,148.54,148.48,6.09]
[1718354951748,6.1435,148.56,148.48,6.09]
[1718354952075,6.09,148.54,148.49,6.09]
[1718354952280,6.09,148.55,148.49,6.09]
[1718354953059,6.09,148.55,148.46,7.74693336]
[1718354953391,6.09,148.55,148.49,6.09]
[1718354954077,6.1435,148.56,148.49,6.09]
[1718354954282,6.09,148.55,148.49,6.09]
[1718354954462,6.09,148.55,148.5,20.0]
[1718354955882,6.09,148.54,148.49,6.09]
[1718354956250,6.09,148.54,148.48,6.09]
[1718354956494,6.09,148.54,148.49,20.0]
[1718354956762,6.09,148.54,148.49,26.09]
[1718354957752,6.09,148.55,148.49,26.09]
[1718354959563,21.8298,148.53,148.49,20.0]
[1718354959766,21.8298,148.53,148.47,45.0]
[1718354959767,6.09,148.51,148.43,15.5239]
[1718354960072,6.09,148.5,148.41,33.60306435]
[1718354960285,6.2885,148.52,148.43,20.26]
[1718354960489,6.2885,148.52,148.48,6.09]
[1718354961291,6.2885,148.52,148.47,6.09]
[1718354961859,12.3785,148.52,148.47,6.09]
[1718354963907,12.3785,148.52,148.43,22.7526]
[1718354964097,12.3785,148.52,148.47,6.09]
[1718354965302,12.3785,148.52,148.46,6.09]
[1718354965504,12.3785,148.52,148.47,20.0]
[1718354965709,6.09,148.51,148.47,20.0]
[1718354966781,6.09,148.51,148.46,6.09]
[1718354966995,6.09,148.51,148.47,20.0]
[1718354967590,6.09,148.51,148.46,26.09]
[1718354968185,12.3785,148.52,148.46,26.09]
[1718354969305,6.2885,148.52,148.47,6.09]
[1718354969613,15.51995119,148.63,148.47,6.09]
[1718354969614,6.5288,148.56,148.51,6.09]
[1718354970216,6.5288,148.56,148.49,2.4917]
[1718354970217,6.5288,148.56,148.5,2.4915]
[1718354970402,15.2117,148.57,148.54,6.09]
[1718354970788,15.2117,148.57,148.53,6.09]
[1718354971024,15.2117,148.57,148.54,20.0]
[1718354971687,15.2117,148.57,148.54,26.09]
[1718354973711,15.2117,148.57,148.54,20.0]
[1718354974801,15.2117,148.57,148.52,6.09]
[1718354975006,15.2117,148.57,148.53,20.0]
[1718354975494,15.2117,148.57,148.5,0.17]
[1718354975495,21.3017,148.57,148.5,0.17]
[1718354975841,21.3017,148.57,148.51,6.09]
[1718354976017,21.3017,148.57,148.52,20.0]
[1718354976799,21.3017,148.57,148.52,26.09]
[1718354977407,21.3017,148.57,148.52,20.0]
[1718354977618,6.09,148.56,148.51,6.09]
[1718354977825,6.09,148.56,148.52,20.0]
[1718354978415,6.09,148.56,148.51,20.0]
[1718354979329,6.09,148.56,148.51,26.09]
[1718354981598,6.09,148.56,148.48,13.28686855]
[1718354981803,6.09,148.56,148.48,6.09]
[1718354981804,6.09,148.53,148.48,6.09]
[1718354982718,6.09,148.52,148.44,23.85884864]
[1718354982923,6.09,148.52,148.47,6.09]
[1718354984512,6.09,148.52,148.48,20.0]
[1718354986441,6.09,148.53,148.48,20.0]
[1718354986739,12.6811,148.55,148.49,6.09]
[1718354987112,6.09,148.54,148.48,26.09]
[1718354987335,0.17,148.53,148.48,26.09]
[1718354987516,6.09,148.54,148.48,26.09]
[1718354988940,6.09,148.54,148.49,6.09]
[1718354989134,12.6811,148.55,148.49,6.09]
[1718354989839,6.09,148.53,148.48,20.0]
[1718354990339,6.4211,148.55,148.48,40.26]
[1718354990541,15.2117,148.57,148.54,6.09]
[1718354993817,15.2117,148.57,148.49,83.4733]
[1718354994136,15.2117,148.57,148.54,6.09]
[1718354994314,6.1017,148.59,148.56,6.09]
[1718354994516,16.6437,148.61,148.56,6.09]
[1718354995335,22.7337,148.61,148.56,6.09]
[1718354996222,6.09,148.6,148.55,6.09]
[1718354996619,22.7337,148.61,148.56,6.09]
[1718354997540,22.7337,148.61,148.51,20.43]
[1718354997752,22.7337,148.61,148.56,6.09]
[1718354997919,22.7337,148.61,148.52,0.34]
[1718354998124,22.7337,148.61,148.56,6.09]
[1718354998526,16.6437,148.61,148.56,6.09]
[1718354999217,16.6437,148.61,148.57,6.09]
[1718354999415,6.6184,148.62,148.55,0.17]
[1718354999727,6.6184,148.62,148.59,6.09]
[1718355001148,15.0016,148.65,148.61,6.09]
[1718355001351,15.0016,148.65,148.55,20.6]
[1718355001533,6.1325,148.59,148.49,20.49830516]
[1718355001741,6.09,148.58,148.52,6.09]
[1718355002214,6.09,148.58,148.47,5.34802314]
[1718355002215,6.09,148.57,148.47,5.34802314]
[1718355002422,0.17,148.56,148.51,6.09]
[1718355003830,0.17,148.56,148.52,6.09]
[1718355004245,0.17,148.57,148.52,6.09]
[1718355004835,0.17,148.57,148.46,39.3076]
[1718355005139,0.68,148.58,148.47,83.45]
[1718355005640,0.68,148.58,148.47,85.942]
[1718355006021,100.0,148.57,148.47,83.45]
[1718355006224,0.17,148.56,148.47,83.45]
[1718355006447,0.17,148.56,148.47,65.17]
[1718355006755,0.17,148.56,148.47,85.9419]
[1718355006939,0.17,148.57,148.47,85.9419]
[1718355007261,6.1325,148.59,148.48,0.34]
[1718355007562,0.34,148.58,148.48,0.34]
[1718355008430,0.17,148.58,148.48,0.34]
[1718355009258,0.17,148.58,148.48,2.8318]
[1718355009424,6.1325,148.59,148.5,0.17]
[1718355009631,6.1325,148.59,148.5,83.62]
[1718355009822,15.282,148.6,148.52,2.4911]
[1718355011044,15.282,148.6,148.51,2.6613]
[1718355011327,15.282,148.6,148.53,0.17]
[1718355011656,6.0445,148.61,148.53,106.541]
[1718355011944,15.1193,148.64,148.56,18.28]
[1718355012148,15.1193,148.64,148.53,72.813]
[1718355012149,100.0,148.63,148.57,20.0]
[1718355012360,15.1193,148.64,148.53,65.17]
[1718355013146,0.34,148.63,148.53,65.17]
[1718355013331,0.17,148.62,148.53,65.17]
[1718355013649,0.17,148.62,148.53,67.661]
[1718355014155,15.1193,148.64,148.53,67.661]
[1718355014156,15.1193,148.64,148.55,2.6606]
[1718355014925,15.1193,148.64,148.53,65.17]
[1718355015159,15.1193,148.64,148.53,85.941]
[1718355015552,0.17,148.63,148.53,85.941]
[1718355016358,0.17,148.63,148.54,2.4908]
[1718355016565,15.1193,148.64,148.56,2.4905]
[1718355016763,15.1193,148.64,148.57,0.17]
[1718355017140,15.1193,148.64,148.57,65.17]
[1718355018727,6.1077,148.66,148.57,67.6604]
[1718355018928,0.17,148.65,148.57,65.17]
[1718355020859,6.1077,148.66,148.57,65.17]
[1718355021760,15.787,148.68,148.58,16.9402]
[1718355021960,15.787,148.68,148.59,65.0]
[1718355022335,15.787,148.68,148.59,83.28]
[1718355023045,0.17,148.67,148.59,83.28]
[1718355023753,15.787,148.68,148.59,83.28]
[1718355023959,15.787,148.68,148.6,0.17]
[1718355026843,15.787,148.68,148.64,6.09]
[1718355027062,15.787,148.68,148.6,0.17]
[1718355027339,15.787,148.68,148.64,6.09]
[1718355031283,0.17,148.69,148.64,6.09]
[1718355031448,6.062,148.7,148.66,6.09]
[1718355031647,0.17,148.71,148.66,6.09]
[1718355032553,0.17,148.71,148.67,6.09]
[1718355033076,115.112,148.72,148.67,6.09]
[1718355033279,6.202,148.74,148.69,6.09]
[1718355033486,6.202,148.74,148.7,6.09]
[1718355034551,0.17,148.73,148.7,6.09]
[1718355035159,0.17,148.73,148.64,15.7317]
[1718355035361,6.26,148.73,148.68,6.09]
[1718355036783,106.09,148.69,148.59,16.3814]
[1718355036961,6.09,148.67,148.62,6.09]
[1718355037159,106.09,148.67,148.59,16.3814]
[1718355037449,6.26,148.66,148.61,6.09]
[1718355037779,0.17,148.66,148.61,6.09]
[1718355038187,0.17,148.66,148.59,16.3814]
[1718355038361,0.17,148.66,148.61,6.09]
[1718355038561,6.701,148.68,148.63,6.09]
[1718355038796,0.17,148.67,148.63,6.09]
[1718355043585,6.361,148.68,148.63,6.09]
[1718355043884,6.361,148.68,148.65,6.09]
[1718355044459,6.361,148.68,148.61,6.09]
[1718355044659,6.361,148.68,148.64,6.09]
[1718355047897,6.09,148.7,148.64,6.09]
[1718355048084,0.17,148.69,148.64,6.09]
[1718355049172,6.09,148.7,148.64,6.09]
[1718355049481,6.5114,148.71,148.67,6.09]
[1718355050682,6.5114,148.71,148.66,6.09]
[1718355053184,5.5114,148.71,148.66,6.09]
[1718355054200,100.0,148.7,148.61,24.36]
[1718355054406,100.0,148.7,148.65,6.09]
[1718355057103,100.0,148.7,148.61,24.36]
[1718355057303,0.17,148.69,148.65,6.09]
[1718355057492,0.17,148.69,148.64,6.09]
[1718355057807,6.26,148.69,148.6,0.51]